[Event "GrandPrix_30.05"]
[Site "Chess.com"]
[Date "2020.05.30"]
[Round "3"]
[White "MaxVavulin"]
[Black "Saxar85"]
[Result "1-0"]
[WhiteElo "2248"]
[BlackElo "2438"]
[TimeControl "600+2"]
[EndTime "9:25:37 PDT"]
[Termination "MaxVavulin won by resignation"]

1. e4 {[%clk 0:10:01.9]} 1... d6 {[%clk 0:08:39.4]} 2. d4 {[%clk 0:10:02.1]}
2... g6 {[%clk 0:08:39.7]} 3. Nc3 {[%clk 0:10:02.1]} 3... Bg7 {[%clk 0:08:36.5]}
4. Bg5 {[%clk 0:10:02.9]} 4... h6 {[%clk 0:08:21.8]} 5. Bh4 {[%clk 0:10:00.8]}
5... a6 {[%clk 0:08:02.7]} 6. f4 {[%clk 0:10:01]} 6... b5 {[%clk 0:08:00.7]} 7.
Nf3 {[%clk 0:10:01]} 7... Bb7 {[%clk 0:07:59.9]} 8. Bd3 {[%clk 0:10:02.3]} 8...
c5 {[%clk 0:07:39.9]} 9. dxc5 {[%clk 0:09:54.2]} 9... dxc5 {[%clk 0:07:40.4]}
10. e5 {[%clk 0:09:53.9]} 10... Nc6 {[%clk 0:06:37.6]} 11. Ne4 {[%clk 0:07:56]}
11... g5 {[%clk 0:05:42]} 12. fxg5 {[%clk 0:07:02.3]} 12... Nxe5 {[%clk
0:05:38.2]} 13. Nxe5 {[%clk 0:06:33]} 13... Bxe5 {[%clk 0:05:37]} 14. g6 {[%clk
0:06:24.1]} 14... Nf6 {[%clk 0:05:22.5]} 15. Nxf6+ {[%clk 0:03:36.8]} 15... exf6
{[%clk 0:05:08.8]} 16. Qh5 {[%clk 0:03:36.6]} 16... Qd4 {[%clk 0:04:30.3]} 17.
Bf2 {[%clk 0:03:25.6]} 17... Qd5 {[%clk 0:03:42.6]} 18. gxf7+ {[%clk 0:02:18.9]}
18... Kf8 {[%clk 0:03:39.1]} 19. Be2 {[%clk 0:02:11.8]} 19... Bxb2 {[%clk
0:02:42.7]} 20. Bxc5+ {[%clk 0:02:12.2]} 20... Kg7 {[%clk 0:02:43.2]} 21. f8=Q+
{[%clk 0:01:46.5]} 21... Rhxf8 {[%clk 0:02:30.5]} 22. Bxf8+ {[%clk 0:01:47]}
22... Rxf8 {[%clk 0:02:30.5]} 23. Qxd5 {[%clk 0:01:46.4]} 23... Bxd5 {[%clk
0:02:23.7]} 24. Rd1 {[%clk 0:01:47.8]} 24... Bc3+ {[%clk 0:02:10.3]} 25. Kf2
{[%clk 0:01:48]} 25... Bxa2 {[%clk 0:02:10.5]} 26. Rd6 {[%clk 0:01:34.4]} 26...
Rc8 {[%clk 0:01:30.3]} 27. Bd3 {[%clk 0:01:10.9]} 27... a5 {[%clk 0:01:13.2]}
28. Bxb5 {[%clk 0:01:02.8]} 28... Be5 {[%clk 0:00:38.9]} 29. Rd7+ {[%clk
0:01:03.2]} 29... Kf8 {[%clk 0:00:33.3]} 30. Bd3 {[%clk 0:00:58.7]} 30... a4
{[%clk 0:00:29.7]} 31. Ke2 {[%clk 0:00:37]} 31... a3 {[%clk 0:00:26.6]} 32. Ra7
{[%clk 0:00:30.1]} 32... Bb2 {[%clk 0:00:27.3]} 33. Rf1 {[%clk 0:00:28.7]} 33...
Bd5 {[%clk 0:00:26.4]} 34. Rf5 {[%clk 0:00:20.3]} 34... a2 {[%clk 0:00:14.8]}
35. Rxd5 {[%clk 0:00:21.1]} 35... a1=Q {[%clk 0:00:15.3]} 36. Rxa1 {[%clk
0:00:22.7]} 36... Bxa1 {[%clk 0:00:16.3]} 37. Rd7 {[%clk 0:00:22.5]} 37... Be5
{[%clk 0:00:16.9]} 38. h3 {[%clk 0:00:22.9]} 38... Rc7 {[%clk 0:00:17.9]} 39.
Rd8+ {[%clk 0:00:23]} 39... Ke7 {[%clk 0:00:15.8]} 40. Rh8 {[%clk 0:00:23.4]}
40... Bf4 {[%clk 0:00:16.8]} 41. Kf3 {[%clk 0:00:23.9]} 41... Bc1 {[%clk
0:00:17.8]} 42. Kg4 {[%clk 0:00:20.3]} 42... Rc5 {[%clk 0:00:17.8]} 43. Rh7+
{[%clk 0:00:19.1]} 43... Kd6 {[%clk 0:00:18.6]} 44. Ra7 {[%clk 0:00:18.5]} 44...
Bg5 {[%clk 0:00:17.9]} 45. h4 {[%clk 0:00:19]} 45... Bd2 {[%clk 0:00:18.2]} 46.
Rf7 {[%clk 0:00:15.9]} 46... Ke6 {[%clk 0:00:18.1]} 47. Rb7 {[%clk 0:00:16.9]}
47... Ra5 {[%clk 0:00:18.4]} 48. Kf3 {[%clk 0:00:16.4]} 48... Ra4 {[%clk
0:00:17.5]} 49. g3 {[%clk 0:00:16.9]} 49... Ra5 {[%clk 0:00:17.3]} 50. Bg6
{[%clk 0:00:16.8]} 50... Ra3+ {[%clk 0:00:16.4]} 51. Kg4 {[%clk 0:00:16.6]}
51... Be1 {[%clk 0:00:16.9]} 52. Bf5+ {[%clk 0:00:17.1]} 52... Kd6 {[%clk
0:00:16.8]} 53. Bd3 {[%clk 0:00:11.5]} 53... Ra4+ {[%clk 0:00:17.8]} 54. Kf3
{[%clk 0:00:10.1]} 54... Bd2 {[%clk 0:00:18.7]} 55. Rb6+ {[%clk 0:00:10.6]}
55... Ke7 {[%clk 0:00:19.3]} 56. Rc6 {[%clk 0:00:09.6]} 56... Ra5 {[%clk
0:00:19.2]} 57. Bc4 {[%clk 0:00:10.1]} 57... Re5 {[%clk 0:00:19.7]} 58. Bb3
{[%clk 0:00:10.5]} 58... Re3+ {[%clk 0:00:20.1]} 59. Kf2 {[%clk 0:00:11.4]}
59... Re5 {[%clk 0:00:19.9]} 60. Bc4 {[%clk 0:00:09.2]} 60... Be1+ {[%clk
0:00:19.1]} 61. Kf3 {[%clk 0:00:10.2]} 61... Rf5+ {[%clk 0:00:20.1]} 62. Kg4
{[%clk 0:00:09.7]} 62... Rf2 {[%clk 0:00:20.2]} 63. Re6+ {[%clk 0:00:09.2]}
63... Kd7 {[%clk 0:00:20.3]} 64. Rxe1 {[%clk 0:00:10.8]} 1-0

[Event "GrandPrix_30.05"]
[Site "Chess.com"]
[Date "2020.05.30"]
[Round "3"]
[White "szachuspl"]
[Black "Paulz64"]
[Result "1/2-1/2"]
[WhiteElo "2347"]
[BlackElo "2179"]
[TimeControl "600+2"]
[EndTime "9:25:52 PDT"]
[Termination "Game drawn by agreement"]

1. d4 {[%clk 0:09:59.8]} 1... Nf6 {[%clk 0:10:00.1]} 2. c4 {[%clk 0:09:49.8]}
2... e6 {[%clk 0:10:00.8]} 3. Nf3 {[%clk 0:09:50]} 3... b6 {[%clk 0:10:00.8]} 4.
g3 {[%clk 0:09:50.7]} 4... Ba6 {[%clk 0:10:01.8]} 5. Qc2 {[%clk 0:09:51.5]} 5...
d5 {[%clk 0:10:00.4]} 6. cxd5 {[%clk 0:09:48.6]} 6... exd5 {[%clk 0:10:00.6]} 7.
Bg2 {[%clk 0:09:49.8]} 7... Be7 {[%clk 0:09:46.9]} 8. O-O {[%clk 0:09:43]} 8...
O-O {[%clk 0:09:45.5]} 9. Bf4 {[%clk 0:09:43.8]} 9... c5 {[%clk 0:09:32.6]} 10.
Nc3 {[%clk 0:09:35.8]} 10... Nc6 {[%clk 0:09:20.3]} 11. Rfd1 {[%clk 0:09:06.7]}
11... c4 {[%clk 0:08:38.9]} 12. Ne5 {[%clk 0:08:58.8]} 12... Bb7 {[%clk
0:08:33.9]} 13. e4 {[%clk 0:08:05.9]} 13... Nb4 {[%clk 0:07:39.2]} 14. Qe2
{[%clk 0:07:55.4]} 14... dxe4 {[%clk 0:06:32.8]} 15. Qxc4 {[%clk 0:07:41.2]}
15... Rc8 {[%clk 0:04:54.7]} 16. Qb3 {[%clk 0:07:19.4]} 16... Nbd5 {[%clk
0:03:41.7]} 17. Nxe4 {[%clk 0:07:00.9]} 17... Nxf4 {[%clk 0:01:32.2]} 18. Nxf6+
{[%clk 0:07:00.1]} 18... gxf6 {[%clk 0:01:09.3]} 19. Bxb7 {[%clk 0:06:53.6]}
19... Ne2+ {[%clk 0:01:07.5]} 20. Kf1 {[%clk 0:06:36.6]} 20... Nxd4 {[%clk
0:01:00.7]} 21. Rxd4 {[%clk 0:06:04.3]} 21... Qxd4 {[%clk 0:00:54.9]} 22. Nf3
{[%clk 0:06:02.4]} 22... Qc4+ {[%clk 0:00:55.2]} 23. Qxc4 {[%clk 0:05:52.7]}
23... Rxc4 {[%clk 0:00:55.9]} 24. Re1 {[%clk 0:04:54.8]} 24... Bb4 {[%clk
0:00:42.5]} 25. Re2 {[%clk 0:04:52.1]} 25... Rd8 {[%clk 0:00:43.5]} 26. Kg2
{[%clk 0:04:48.2]} 26... Rc7 {[%clk 0:00:41.4]} 27. Ba6 {[%clk 0:04:31.3]} 27...
Kf8 {[%clk 0:00:42.2]} 28. a3 {[%clk 0:04:29.1]} 28... Be7 {[%clk 0:00:37.9]}
29. Nh4 {[%clk 0:04:29.4]} 29... Rc5 {[%clk 0:00:29.9]} 30. b4 {[%clk
0:04:13.3]} 30... Re5 {[%clk 0:00:27.9]} 31. Rc2 {[%clk 0:04:14.1]} 31... f5
{[%clk 0:00:26.8]} 32. Nf3 {[%clk 0:04:00]} 32... Red5 {[%clk 0:00:27.9]} 33.
Rc7 {[%clk 0:03:51.3]} 33... R5d7 {[%clk 0:00:28.9]} 34. Rc4 {[%clk 0:03:48.9]}
34... Rd5 {[%clk 0:00:29.4]} 35. Rc7 {[%clk 0:03:22.6]} 35... R5d7 {[%clk
0:00:29.7]} 36. Rc4 {[%clk 0:03:20.6]} 36... Rd5 {[%clk 0:00:30.6]} 37. Rf4
{[%clk 0:03:18.3]} 37... Bf6 {[%clk 0:00:29]} 38. Bb7 {[%clk 0:02:57.6]} 38...
R5d7 {[%clk 0:00:28.7]} 39. Bc6 {[%clk 0:02:58]} 39... Rd6 {[%clk 0:00:29.7]}
40. b5 {[%clk 0:02:57.8]} 40... Bb2 {[%clk 0:00:30]} 41. a4 {[%clk 0:02:56.8]}
41... Rf6 {[%clk 0:00:30.7]} 42. Nh4 {[%clk 0:02:37.2]} 42... Rd4 {[%clk
0:00:28.4]} 43. Rf3 {[%clk 0:02:28.2]} 43... f4 {[%clk 0:00:29]} 44. Rb3 {[%clk
0:02:24.4]} 44... fxg3 {[%clk 0:00:28]} 45. hxg3 {[%clk 0:02:16]} 45... Bc1
{[%clk 0:00:25.1]} 46. Nf3 {[%clk 0:02:10]} 46... Rdd6 {[%clk 0:00:24.9]} 47.
Ne5 {[%clk 0:02:03.6]} 47... Kg7 {[%clk 0:00:21.2]} 48. Rb4 {[%clk 0:01:57.4]}
48... Bh6 {[%clk 0:00:18.4]} 49. Rg4+ {[%clk 0:01:57.4]} 49... Rg6 {[%clk
0:00:17.1]} 50. Nxg6 {[%clk 0:01:57.8]} 50... hxg6 {[%clk 0:00:18.7]} 51. Re4
{[%clk 0:01:56.7]} 51... Kf6 {[%clk 0:00:18.1]} 52. a5 {[%clk 0:01:55]} 52...
bxa5 {[%clk 0:00:17]} 53. f4 {[%clk 0:01:53.6]} 53... Rd2+ {[%clk 0:00:15.6]}
54. Kh3 {[%clk 0:01:47.9]} 54... Bf8 {[%clk 0:00:17.1]} 55. Re8 {[%clk
0:01:23.1]} 55... Bc5 {[%clk 0:00:17]} 56. Rc8 {[%clk 0:01:11.9]} 56... Bb6
{[%clk 0:00:17.2]} 57. Rf8 {[%clk 0:01:06.7]} 57... Kg7 {[%clk 0:00:17.4]} 58.
Re8 {[%clk 0:01:07]} 58... a4 {[%clk 0:00:18.8]} 59. Re4 {[%clk 0:01:04.5]}
59... a3 {[%clk 0:00:19.4]} 60. Ra4 {[%clk 0:01:05.5]} 60... Bc5 {[%clk
0:00:20.1]} 61. f5 {[%clk 0:00:44.5]} 61... gxf5 {[%clk 0:00:20.2]} 62. Bd7
{[%clk 0:00:45.5]} 62... Kf6 {[%clk 0:00:20.4]} 63. Bc6 {[%clk 0:00:45.7]} 63...
Bg1 {[%clk 0:00:19.9]} 64. Bg2 {[%clk 0:00:43.9]} 64... Bb6 {[%clk 0:00:19.4]}
65. Rxa3 {[%clk 0:00:44.5]} 65... Rd4 {[%clk 0:00:19]} 66. Rc3 {[%clk
0:00:43.1]} 66... f4 {[%clk 0:00:19.2]} 67. Rc6+ {[%clk 0:00:44]} 67... Kg5
{[%clk 0:00:19.3]} 68. gxf4+ {[%clk 0:00:42.5]} 68... Rxf4 {[%clk 0:00:19.6]}
69. Bd5 {[%clk 0:00:42.2]} 69... f5 {[%clk 0:00:18.2]} 70. Rc8 {[%clk
0:00:41.3]} 70... Rd4 {[%clk 0:00:18.6]} 71. Rg8+ {[%clk 0:00:41]} 71... Kf4
{[%clk 0:00:19.6]} 72. Bc6 {[%clk 0:00:40.5]} 72... Rd3+ {[%clk 0:00:20.2]} 73.
Kh2 {[%clk 0:00:41]} 73... Rd2+ {[%clk 0:00:20.4]} 74. Rg2 {[%clk 0:00:41.3]}
74... Rxg2+ {[%clk 0:00:19.6]} 75. Kxg2 {[%clk 0:00:42.4]} 75... Ke3 {[%clk
0:00:21.5]} 76. Bb7 {[%clk 0:00:43]} 76... f4 {[%clk 0:00:21.1]} 1/2-1/2

[Event "GrandPrix_30.05"]
[Site "Chess.com"]
[Date "2020.05.30"]
[Round "3"]
[White "GadimbayliA"]
[Black "Iljin_Timofey"]
[Result "1-0"]
[WhiteElo "2520"]
[BlackElo "2266"]
[TimeControl "600+2"]
[EndTime "9:25:59 PDT"]
[Termination "GadimbayliA won by checkmate"]

1. e4 {[%clk 0:10:01.9]} 1... c5 {[%clk 0:09:58.9]} 2. Nf3 {[%clk 0:10:02.7]}
2... Nc6 {[%clk 0:09:59.9]} 3. Bb5 {[%clk 0:10:03.2]} 3... e6 {[%clk 0:10:00.5]}
4. Bxc6 {[%clk 0:09:57.9]} 4... bxc6 {[%clk 0:10:02.4]} 5. d3 {[%clk 0:09:58.9]}
5... Ne7 {[%clk 0:10:03.1]} 6. Nc3 {[%clk 0:09:52.1]} 6... Ng6 {[%clk
0:10:01.8]} 7. Ng5 {[%clk 0:09:52.8]} 7... f6 {[%clk 0:09:33.3]} 8. Nh3 {[%clk
0:09:51.7]} 8... Be7 {[%clk 0:09:18.9]} 9. f4 {[%clk 0:09:50.8]} 9... O-O {[%clk
0:09:20.8]} 10. O-O {[%clk 0:09:42.5]} 10... d5 {[%clk 0:09:05.4]} 11. Qh5
{[%clk 0:09:38]} 11... Qe8 {[%clk 0:08:27]} 12. exd5 {[%clk 0:09:07.3]} 12...
cxd5 {[%clk 0:08:28.9]} 13. f5 {[%clk 0:08:56.9]} 13... exf5 {[%clk 0:07:09.8]}
14. Nxd5 {[%clk 0:08:54.2]} 14... Qf7 {[%clk 0:07:09.8]} 15. Nxe7+ {[%clk
0:08:30]} 15... Qxe7 {[%clk 0:07:05.3]} 16. b3 {[%clk 0:07:21.4]} 16... Ne5
{[%clk 0:06:26.8]} 17. Bb2 {[%clk 0:06:56.3]} 17... g6 {[%clk 0:06:13]} 18. Qh4
{[%clk 0:06:55.7]} 18... Bb7 {[%clk 0:06:08.8]} 19. Rae1 {[%clk 0:06:51]} 19...
Rae8 {[%clk 0:06:02.1]} 20. Qg3 {[%clk 0:04:46.5]} 20... Qd6 {[%clk 0:05:41.2]}
21. Nf4 {[%clk 0:04:36.5]} 21... Kf7 {[%clk 0:05:05.3]} 22. h3 {[%clk
0:03:53.6]} 22... Rg8 {[%clk 0:04:40.4]} 23. Ne2 {[%clk 0:03:19.8]} 23... h5
{[%clk 0:04:34.6]} 24. Nf4 {[%clk 0:02:14]} 24... g5 {[%clk 0:03:41.5]} 25. Nxh5
{[%clk 0:01:33.9]} 25... f4 {[%clk 0:03:35]} 26. Qf2 {[%clk 0:01:34.8]} 26...
Kg6 {[%clk 0:01:49.1]} 27. Bxe5 {[%clk 0:01:32.1]} 27... fxe5 {[%clk 0:01:38.3]}
28. Ng3 {[%clk 0:01:30.5]} 28... Qd4 {[%clk 0:00:25.2]} 29. Ne4 {[%clk
0:01:12.7]} 29... Rc8 {[%clk 0:00:11.4]} 30. Qxd4 {[%clk 0:01:09.6]} 30... exd4
{[%clk 0:00:07.6]} 31. Nd6 {[%clk 0:01:10.9]} 31... Rc7 {[%clk 0:00:07]} 32.
Re6+ {[%clk 0:01:12.2]} 32... Kh5 {[%clk 0:00:07.8]} 33. Nxb7 {[%clk 0:00:20.1]}
33... Rxb7 {[%clk 0:00:09.7]} 34. Re5 {[%clk 0:00:22]} 34... Kh4 {[%clk
0:00:07.8]} 35. Kh2 {[%clk 0:00:20.6]} 35... Rf8 {[%clk 0:00:04.8]} 36. Re6
{[%clk 0:00:10.4]} 36... g4 {[%clk 0:00:05.1]} 37. Rxf4 {[%clk 0:00:05.3]} 37...
Rxf4 {[%clk 0:00:05]} 38. g3+ {[%clk 0:00:06.7]} 38... Kg5 {[%clk 0:00:06.8]}
39. gxf4+ {[%clk 0:00:08.1]} 39... Kxf4 {[%clk 0:00:08.5]} 40. Re4+ {[%clk
0:00:09.7]} 40... Kf3 {[%clk 0:00:09.6]} 41. Rxg4 {[%clk 0:00:09.6]} 41... Re7
{[%clk 0:00:09.7]} 42. Rg3+ {[%clk 0:00:08.9]} 42... Ke2 {[%clk 0:00:10.7]} 43.
h4 {[%clk 0:00:08.3]} 43... Kd1 {[%clk 0:00:10.1]} 44. Rg2 {[%clk 0:00:08.7]}
44... a5 {[%clk 0:00:06.3]} 45. Kh3 {[%clk 0:00:06.6]} 45... Kc1 {[%clk
0:00:06.2]} 46. a4 {[%clk 0:00:07.2]} 46... Kb2 {[%clk 0:00:08]} 47. h5 {[%clk
0:00:07]} 47... Re1 {[%clk 0:00:05.2]} 48. Kg4 {[%clk 0:00:04.8]} 48... c4
{[%clk 0:00:06.1]} 49. dxc4 {[%clk 0:00:05.3]} 49... Rh1 {[%clk 0:00:07.6]} 50.
Kg5 {[%clk 0:00:05.1]} 50... Kc3 {[%clk 0:00:09.4]} 51. Kg6 {[%clk 0:00:05.6]}
51... d3 {[%clk 0:00:09.1]} 52. cxd3 {[%clk 0:00:07.5]} 52... Kxb3 {[%clk
0:00:10.4]} 53. h6 {[%clk 0:00:08]} 53... Kxa4 {[%clk 0:00:12.3]} 54. h7 {[%clk
0:00:09]} 54... Kb3 {[%clk 0:00:13.4]} 55. Kg7 {[%clk 0:00:10.1]} 55... a4
{[%clk 0:00:13.9]} 56. h8=Q {[%clk 0:00:10.7]} 56... Rxh8 {[%clk 0:00:14.8]} 57.
Kxh8 {[%clk 0:00:12.6]} 57... a3 {[%clk 0:00:16.7]} 58. c5 {[%clk 0:00:14]}
58... a2 {[%clk 0:00:15.3]} 59. Rxa2 {[%clk 0:00:14.8]} 59... Kxa2 {[%clk
0:00:17.2]} 60. c6 {[%clk 0:00:16.7]} 60... Kb3 {[%clk 0:00:19]} 61. c7 {[%clk
0:00:18.6]} 61... Kc3 {[%clk 0:00:20.9]} 62. c8=Q+ {[%clk 0:00:19.8]} 62... Kxd3
{[%clk 0:00:22.8]} 63. Qe6 {[%clk 0:00:21]} 63... Kd4 {[%clk 0:00:24.7]} 64. Kg7
{[%clk 0:00:22.9]} 64... Kc5 {[%clk 0:00:26.3]} 65. Kf6 {[%clk 0:00:24.8]} 65...
Kd4 {[%clk 0:00:28.2]} 66. Ke7 {[%clk 0:00:26.7]} 66... Kc5 {[%clk 0:00:30.1]}
67. Qd6+ {[%clk 0:00:27.7]} 67... Kc4 {[%clk 0:00:31]} 68. Ke6 {[%clk
0:00:29.6]} 68... Kc3 {[%clk 0:00:32.9]} 69. Qd5 {[%clk 0:00:30.5]} 69... Kc2
{[%clk 0:00:34.8]} 70. Ke5 {[%clk 0:00:32.4]} 70... Kc3 {[%clk 0:00:36.7]} 71.
Qd4+ {[%clk 0:00:32.8]} 71... Kc2 {[%clk 0:00:38.6]} 72. Kd5 {[%clk 0:00:34.6]}
72... Kb3 {[%clk 0:00:40.1]} 73. Qc4+ {[%clk 0:00:35.8]} 73... Kb2 {[%clk
0:00:40.8]} 74. Kd4 {[%clk 0:00:37.7]} 74... Kb1 {[%clk 0:00:41.9]} 75. Kc3
{[%clk 0:00:36.6]} 75... Ka1 {[%clk 0:00:37.4]} 76. Qa4+ {[%clk 0:00:32.2]}
76... Kb1 {[%clk 0:00:39.3]} 77. Qb3+ {[%clk 0:00:34.1]} 77... Ka1 {[%clk
0:00:39.4]} 78. Qb2# {[%clk 0:00:35.3]} 1-0

[Event "GrandPrix_30.05"]
[Site "Chess.com"]
[Date "2020.05.30"]
[Round "3"]
[White "mishanick"]
[Black "RitvarsReimanis"]
[Result "1-0"]
[WhiteElo "2928"]
[BlackElo "2141"]
[TimeControl "600+2"]
[EndTime "9:26:00 PDT"]
[Termination "mishanick won on time"]

1. d4 {[%clk 0:10:01.9]} 1... Nf6 {[%clk 0:09:58.8]} 2. c4 {[%clk 0:10:03.3]}
2... e6 {[%clk 0:09:59.5]} 3. Nf3 {[%clk 0:10:04.5]} 3... d5 {[%clk 0:09:59.9]}
4. Nc3 {[%clk 0:10:06]} 4... Nbd7 {[%clk 0:09:53.3]} 5. cxd5 {[%clk 0:10:00.9]}
5... exd5 {[%clk 0:09:53.9]} 6. Bg5 {[%clk 0:10:02.2]} 6... c6 {[%clk
0:09:54.7]} 7. e3 {[%clk 0:10:03.4]} 7... Be7 {[%clk 0:09:55]} 8. Bd3 {[%clk
0:10:04.6]} 8... O-O {[%clk 0:09:56.6]} 9. Qc2 {[%clk 0:10:05.6]} 9... Re8
{[%clk 0:09:58]} 10. O-O {[%clk 0:10:06.9]} 10... Nf8 {[%clk 0:09:59.5]} 11. h3
{[%clk 0:10:08.1]} 11... Ng6 {[%clk 0:10:00.2]} 12. Rab1 {[%clk 0:09:44.8]}
12... Ne4 {[%clk 0:09:31.9]} 13. Bxe4 {[%clk 0:09:24]} 13... dxe4 {[%clk
0:08:46.7]} 14. Bxe7 {[%clk 0:09:01.2]} 14... Qxe7 {[%clk 0:08:48.6]} 15. Nd2
{[%clk 0:09:02.7]} 15... f5 {[%clk 0:08:15.9]} 16. b4 {[%clk 0:08:41.5]} 16...
a6 {[%clk 0:08:16.3]} 17. d5 {[%clk 0:08:20.5]} 17... Bd7 {[%clk 0:07:50.3]} 18.
dxc6 {[%clk 0:07:37.1]} 18... Bxc6 {[%clk 0:07:47.9]} 19. b5 {[%clk 0:07:36.4]}
19... axb5 {[%clk 0:07:22.5]} 20. Nxb5 {[%clk 0:07:36]} 20... f4 {[%clk
0:07:13.4]} 21. Nd4 {[%clk 0:07:08.9]} 21... fxe3 {[%clk 0:06:48.2]} 22. fxe3
{[%clk 0:07:09.1]} 22... Qg5 {[%clk 0:06:42.2]} 23. Rbe1 {[%clk 0:06:07.8]}
23... Nh4 {[%clk 0:06:19.9]} 24. Re2 {[%clk 0:05:43.6]} 24... Bd5 {[%clk
0:06:08.2]} 25. a4 {[%clk 0:04:09.2]} 25... h6 {[%clk 0:03:21.8]} 26. Rf4 {[%clk
0:03:20.3]} 26... Rac8 {[%clk 0:02:40.7]} 27. Qb2 {[%clk 0:03:18.6]} 27... Rf8
{[%clk 0:00:53.9]} 28. Nxe4 {[%clk 0:02:31.4]} 28... Bxe4 {[%clk 0:00:22.5]} 29.
Rxe4 {[%clk 0:02:33.3]} 29... Rce8 {[%clk 0:00:12.2]} 30. Rg4 {[%clk 0:02:02.6]}
30... Qe7 {[%clk 0:00:12.5]} 31. Rf2 {[%clk 0:01:08.1]} 31... Qxe3 {[%clk
0:00:02.2]} 32. Rxg7+ {[%clk 0:00:59.6]} 32... Kh8 {[%clk 0:00:03.6]} 33. Nf5
{[%clk 0:00:19.6]} 33... Nxf5 {[%clk 0:00:04.2]} 34. Re7+ {[%clk 0:00:09.4]}
34... Qd4 {[%clk 0:00:05.4]} 35. Qxd4+ {[%clk 0:00:04.8]} 35... Nxd4 {[%clk
0:00:07.3]} 36. Rxf8+ {[%clk 0:00:05]} 36... Rxf8 {[%clk 0:00:07.8]} 37. Rxb7
{[%clk 0:00:06.9]} 37... Ra8 {[%clk 0:00:06.8]} 38. Rb4 {[%clk 0:00:07.6]} 38...
Nc6 {[%clk 0:00:08.1]} 39. Rb6 {[%clk 0:00:08.8]} 39... Nd4 {[%clk 0:00:06.2]}
40. Rxh6+ {[%clk 0:00:09.8]} 40... Kg7 {[%clk 0:00:07.8]} 41. Rh4 {[%clk
0:00:11.4]} 41... Nf5 {[%clk 0:00:08.5]} 42. Rb4 {[%clk 0:00:11.7]} 42... Kf6
{[%clk 0:00:08.3]} 43. Kf2 {[%clk 0:00:11.8]} 43... Ke5 {[%clk 0:00:08]} 44. g4
{[%clk 0:00:10.8]} 44... Nd6 {[%clk 0:00:09]} 45. h4 {[%clk 0:00:08.3]} 45...
Rf8+ {[%clk 0:00:08]} 46. Ke3 {[%clk 0:00:08.2]} 46... Rf1 {[%clk 0:00:08.2]}
47. h5 {[%clk 0:00:07]} 47... Re1+ {[%clk 0:00:08.8]} 48. Kf3 {[%clk 0:00:07.2]}
48... Rf1+ {[%clk 0:00:09.9]} 49. Kg2 {[%clk 0:00:07.9]} 49... Ra1 {[%clk
0:00:10.6]} 50. Kh3 {[%clk 0:00:07.6]} 50... Ne4 {[%clk 0:00:10.8]} 51. Rb5+
{[%clk 0:00:08.5]} 51... Kf6 {[%clk 0:00:07.8]} 52. Rf5+ {[%clk 0:00:08.5]}
52... Kg7 {[%clk 0:00:09.1]} 53. a5 {[%clk 0:00:10]} 53... Ra3+ {[%clk
0:00:09.4]} 54. Kh4 {[%clk 0:00:09.5]} 54... Ra1 {[%clk 0:00:10.3]} 55. g5
{[%clk 0:00:08.3]} 55... Rh1+ {[%clk 0:00:09.1]} 56. Kg4 {[%clk 0:00:09.5]}
56... Rg1+ {[%clk 0:00:04.2]} 57. Kf4 {[%clk 0:00:09.3]} 57... Nc3 {[%clk
0:00:04.3]} 58. Rc5 {[%clk 0:00:07.8]} 58... Rf1+ {[%clk 0:00:04.3]} 59. Kg4
{[%clk 0:00:07.9]} 59... Ne2 {[%clk 0:00:05.5]} 60. h6+ {[%clk 0:00:08.4]} 60...
Kg6 {[%clk 0:00:07]} 61. Rc6+ {[%clk 0:00:09.6]} 61... Kh7 {[%clk 0:00:08.4]}
62. Rc7+ {[%clk 0:00:11.2]} 62... Kg8 {[%clk 0:00:08.9]} 63. g6 {[%clk
0:00:10.4]} 63... Rg1+ {[%clk 0:00:09.9]} 64. Kf5 {[%clk 0:00:09.6]} 64... Rf1+
{[%clk 0:00:11.2]} 65. Ke5 {[%clk 0:00:10]} 65... Rf8 {[%clk 0:00:09.1]} 66. h7+
{[%clk 0:00:11.3]} 1-0